Cogmind - Beta 14 @@@ ROGUE MODE // 2024.09.11 @ 00:39:47 Player: Null_error Result: Destroyed by Y-45 Defender with Heavy Assault Rifle Performance ------------- Evolutions (1) 500 Regions Visited (3) 600 Robots Destroyed (31) 155 Value Destroyed (664) 664 Prototype IDs (1) 20 Alien Tech Used (0) 0 Bonus (0) 0 TOTAL SCORE: 1939 Bonus ------- None Cogmind --------- Core Integrity 0/400 Matter 294/300 Energy 450/450 System Corruption 5% Temperature Cool (0) Movement Walking (190) Ox1 Location -9/Storage Parts ------- > --- POWER (1) -------- Ion Engine > --- PROPULSION (2) --- Aluminum Leg Aluminum Leg > --- UTILITY (4) ------ Medium Storage Unit Large Battery Visual Processing Unit Seismic Detector > --- WEAPON (2) ------- Small Laser Mining Laser > --- INVENTORY (10) --- Light Ion Engine Aluminum Leg Flight Unit Small Storage Unit Small Battery (100) High-capacity Matter Pod (200) Seismic Detector Hacking Suite Light Assault Rifle Peak State ------------ > --- POWER ------------ Light Ion Engine > --- PROPULSION ------- Aluminum Leg Improved Hover Unit > --- UTILITY ---------- Small Storage Unit Visual Processing Unit Improved Terrain Scanner Terrain Scan Processor > --- WEAPON ----------- EM Pulse Gun Small Laser > --- INVENTORY -------- Light Ion Engine Light Ion Engine High-capacity Matter Pod Seismic Detector Hacking Suite Shotgun Grenade Launcher Mining Laser [Rating: 15] Favorites ----------- Power Light Ion Engine Engine Light Ion Engine Propulsion Aluminum Leg Treads Light Treads Leg Aluminum Leg Hover Unit Improved Hover Unit Utility Small Storage Unit Device Seismic Detector Storage Small Storage Unit Processor Visual Processing Unit Weapon EM Pulse Gun Energy Gun EM Pulse Gun Ballistic Gun Shotgun Launcher Grenade Launcher Special Weapon Mining Laser Impact Weapon Hammer Build | -11 -10 -9 -9 ------- Run | Yrd Mat Mat Sto Slots Evolved 2 | . . 2 . Power . | . . . . Propulsion . | . . . . Utility 2 | . . 2 . Weapon . | . . . . Parts Attached 46 | 9 . 8 29 Power 9 | 1 . 1 7 Engine 9 | 1 . 1 7 Core . | . . . . Reactor . | . . . . Propulsion 10 | 3 . 2 5 Treads 1 | 1 . . . Leg 7 | 2 . 1 4 Wheel . | . . . . Hover 2 | . . 1 1 Flight . | . . . . Utility 13 | 3 . 5 5 Device 7 | 2 . 3 2 Storage 4 | 1 . . 3 Processor 2 | . . 2 . Hackware . | . . . . Protection . | . . . . Artifact . | . . . . Weapon 14 | 2 . . 12 Energy Gun 6 | 2 . . 4 Energy Cannon . | . . . . Ballistic Gun 5 | . . . 5 Ballistic Cannon . | . . . . Launcher 1 | . . . 1 Special Weapon 1 | . . . 1 Impact Weapon 1 | . . . 1 Slashing Weapon . | . . . . Piercing Weapon . | . . . . Special Melee Weapon . | . . . . Unidentified Prototypes 1 | . . . 1 Corrupted Parts 1 | . . . 1 System Corruption 2 | . . . 2 Parts Lost 13 | . . 4 9 Power 2 | . . . 2 Propulsion 3 | . . 1 2 Utility 2 | . . 1 1 Weapon 6 | . . 2 4 Highest Loss Streak 3 | . . 3 3 To Critical Strikes . | . . . . Average Slot Usage (%) 85 | . 100 94 76 Engine 11 | . 14 11 10 Leg 18 | . 28 21 14 Device 14 | . 14 11 15 Storage 11 | . 14 11 11 Processor 13 | . . 17 12 Energy Gun 12 | . 28 21 2 Ballistic Gun 2 | . . . 4 Impact Weapon 1 | . . . 2 Peak Build Rating 15 | 9 8 15 12 Average Rating 9 | 4 7 12 9 On Entrance 6 | . 7 8 10 Naked Turns . | . . . . Heaviest Build 24 | 12 12 19 24 Greatest Support 20 | 20 20 20 20 Greatest Overweight (x) 7 | 1 . 1 7 Average Overweight (x) . | . . . . Largest Inventory Capacity 10 | 8 8 8 10 Average Capacity 7 | 6 8 8 8 Most Carried 9 | 3 8 8 9 Average Carried 6 | 1 4 7 6 Final Capacity 10 | 8 8 8 10 Final Carried 9 | 3 8 8 9 Class Distribution -------------------- 94% | Mutant 5% | Skirmisher Dominant Class ---------------- Mutant | -10/Materials Mutant | -9/Materials Mutant | -9/Storage Resources | -11 -10 -9 -9 ----------- Run | Yrd Mat Mat Sto Matter Collected 975 | 288 . 266 421 Remotely . | . . . . Salvage Created 886 | 106 110 279 391 Parts 45 | 5 6 21 13 Haulers Intercepted 1 | . . . 1 Recyclers Shooed . | . . . . Parts Field Recycled . | . . . . Retrieved Matter . | . . . . Parts Self-Destructed . | . . . . Prevented . | . . . . Kills | -11 -10 -9 -9 ------- Run | Yrd Mat Mat Sto Combat Hostiles Destroyed 20 | . 1 9 10 Guns 16 | . 1 9 6 AOE 3 | . . . 3 Classes Destroyed 10 | 2 2 3 3 Builder 1 | . . . 1 Tunneler 1 | 1 . . . Hauler 1 | . . . 1 Recycler 3 | 1 1 . 1 Operator 3 | . 1 1 1 Watcher 2 | . . 1 1 Swarmer 8 | . . 6 2 Grunt 9 | . 1 2 6 Brawler 1 | . . . 1 Sentry 2 | . . 1 1 Best Kill Streak 6 | 2 3 4 6 Combat Bots Only 4 | . 1 4 3 Max Kills in Single Turn 2 | 1 1 2 2 Gunslinging 1 | . . 1 . Exploded 1 | . . . 1 Melee . | . . . . Uniques/NPCs Destroyed . | . . . . Combat | -11 -10 -9 -9 -------- Run | Yrd Mat Mat Sto Hostile Shots Fired 174 | . 3 59 112 Missed 46 | . 2 15 29 Damage Taken 1623 | . 10 534 1079 Core 415 | . 10 163 242 Absorbed by Shields . | . . . . Regen/Repaired (Parts) 59 | . . . 59 Core Remaining (%) 98 | 100 96 . . Volleys Fired 87 | 3 5 33 46 Largest 2 | 2 2 2 2 Hottest 100 | 80 80 80 100 Shots Fired 141 | 6 10 66 59 Gun 133 | 6 10 66 51 Cannon . | . . . . Launcher 7 | . . . 7 Special 1 | . . . 1 Kinetic 44 | . . . 44 Thermal 44 | 3 5 33 3 Explosive 7 | . . . 7 Electromagnetic 46 | 3 5 33 5 Robot Hit Streak 8 | 4 5 7 8 Robot Miss Streak 7 | . 2 5 7 Penetration Max . | . . . . Secondary Targets 3 | . . 2 1 Max Gunslinging Chain 1 | . . 1 1 Shots Hit Robots 85 | 4 5 35 41 Core Hits 49 | 3 4 14 28 Critical Kills . | . . . . Critical Parts Destroyed 2 | . . . 2 Critical Strikes 2 | . . . 2 Destroy 1 | . . . 1 Smash 1 | . . . 1 Melee Attacks 3 | . . . 3 Impact 3 | . . . 3 Slashing . | . . . . Piercing . | . . . . Sneak Attacks 2 | . . . 2 Combat Hostiles . | . . . . Follow-up Attacks . | . . . . Damage Inflicted 1643 | 52 64 464 1063 Guns 972 | 46 64 410 452 Cannons . | . . . . Explosions 511 | . . 48 463 Melee 141 | . . . 141 Ramming 19 | 6 . 6 7 Kinetic 368 | . . . 368 Thermal 320 | 22 21 265 12 Explosive 463 | . . . 463 Electromagnetic 332 | 24 43 193 72 Impact 141 | . . . 141 Slashing . | . . . . Piercing . | . . . . Highest Corruption 5 | . . . 5 Average Corruption 3 | . . . 3 Corruption Purged . | . . . . Corruption Blocked . | . . . . Effects 18 | . . . 18 Message Errors 6 | . . . 6 Matter Fused 6 | . . . 6 Energy Discharges 4 | . . . 4 Data Loss (major) 1 | . . . 1 Misfires 1 | . . . 1 Overload Shots . | . . . . Overflow Damage 131 | . . 38 93 Projectiles . | . . . . Explosions 50 | . . 38 12 Melee 81 | . . . 81 Knockbacks 2 | . . . 2 Impact 2 | . . . 2 Kinetic . | . . . . Secondary . | . . . . Self-Inflicted Damage 107 | . . . 107 Shots 5 | . . . 5 Rammed . | . . . . Targets Rammed 11 | 1 . 4 6 Kicked 11 | 1 . 4 6 Crushed . | . . . . Highest Temperature 207 | 36 42 207 9 Average Temperature 43 | 18 20 52 5 Received Heat Transfer 498 | . 6 90 402 Siege Activations . | . . . . Robots Corrupted 3 | . . . 3 Combat Hostiles 1 | . . . 1 Parts Fried 7 | . . . 7 Impact Corruptions 4 | . . . 4 Robots Melted . | . . . . Combat Hostiles . | . . . . Parts Melted 1 | . . 1 . Heat Transferred 650 | 50 50 525 25 Parts Sabotaged . | . . . . Parts Stolen . | . . . . Parts Stripped . | . . . . Power Chain Reactions 1 | . . 1 . Alert | -11 -10 -9 -9 ------- Run | Yrd Mat Mat Sto Peak Influence 320 | 10 71 272 320 Initial 102 | . 6 29 102 Average 125 | 2 45 111 165 Maximum Alert Level 1 | . . 1 1 Low Security (%) 79 | 100 100 86 68 Level 1 20 | . . 13 31 Level 2 . | . . . . Level 3 . | . . . . Level 4 . | . . . . Level 5 . | . . . . High Security . | . . . . Max Security . | . . . . Squads Dispatched 6 | . 2 2 2 Investigation 2 | . 2 . . Extermination . | . . . . Reinforcement 4 | . . 2 2 Assault . | . . . . Garrison . | . . . . Intercept . | . . . . Searches Triggered . | . . . . Construction Impeded . | . . . . Haulers Reinforced . | . . . . Active Scanning Responses . | . . . . Cargo Convoy Interrupts . | . . . . Stealth | -11 -10 -9 -9 --------- Run | Yrd Mat Mat Sto Distress Signals 5 | . . 3 2 Communications Jammed . | . . . . Distress Signals . | . . . . Times Spotted 37 | . 2 16 19 Peak Tracking Total 5 | . 2 4 5 Tactical Retreats 4 | . . 1 3 Traps | -11 -10 -9 -9 ------- Run | Yrd Mat Mat Sto Traps Triggered 3 | . . 2 1 Indirectly . | . . . . Trap Hack Attempts . | . . . . Triggered . | . . . . Disarmed . | . . . . Reprogrammed . | . . . . Reused . | . . . . Traps Extracted . | . . . . Installed . | . . . . Triggered . | . . . . Machines | -11 -10 -9 -9 ---------- Run | Yrd Mat Mat Sto Machines Disabled 4 | . . 1 3 Max in Single Turn 1 | . . 1 1 Machines Repaired . | . . . . Machines Dismantled . | . . . . Machines Sabotaged . | . . . . Overloaded Fab Kills . | . . . . Hacking | -11 -10 -9 -9 --------- Run | Yrd Mat Mat Sto Machines Accessed 8 | . 2 4 2 Terminals 6 | . 2 3 1 Fabricators . | . . . . Repair Stations 1 | . . . 1 Recycling Units . | . . . . Scanalyzers 1 | . . 1 . Garrison Access . | . . . . Total Hacks 24 | . 8 13 3 Successful 16 | . 4 9 3 Failed 8 | . 4 4 . Catastrophic 2 | . 1 1 . Database Lockouts . | . . . . Manual 21 | . 6 10 5 Terminals 20 | . 8 11 1 Fabricators . | . . . . Repair Stations 2 | . . . 2 Recycling Units . | . . . . Scanalyzers 2 | . . 2 . Garrison Access . | . . . . Terminal Hacks 4 | . 2 2 . Robot Analysis 1 | . . 1 . Locate Traps 2 | . 1 1 . Zone Layout 1 | . 1 . . Fabricator Hacks . | . . . . Repair Station Hacks 2 | . . . 2 Scan Component 1 | . . . 1 Repair 1 | . . . 1 Recycling Unit Hacks . | . . . . Scanalyzer 2 | . . 2 . Insert Component 1 | . . 1 . Analyze 1 | . . 1 . Garrison Access Hacks . | . . . . Unauthorized Hacks 8 | . 2 5 1 Terminals 8 | . 2 5 1 Assimilate 3 | . 1 2 . Skim 5 | . 1 3 1 Fabricators . | . . . . Repair Stations . | . . . . Recycling Units . | . . . . Scanalyzers . | . . . . Garrison Access . | . . . . Data Cores Recovered . | . . . . Used . | . . . . Hacking Detections 6 | . 2 3 1 Full Trace Events 2 | . 2 . . Feedback Events . | . . . . Feedback Blocked . | . . . . Robot Schematics Acquired . | . . . . Robots Built . | . . . . Authchips . | . . . . Time . | . . . . Total Robot Build Rating . | . . . . Part Schematics Acquired 1 | . . 1 . Parts Built . | . . . . Authchips . | . . . . Time . | . . . . Total Part Build Rating . | . . . . Parts Repaired 1 | . . . 1 Time 26 | . . . 26 Parts Recycled . | . . . . Recycled Matter . | . . . . Retrieved Matter . | . . . . Retrieved Components . | . . . . Parts Scanalyzed 1 | . . 1 . Part Schematics Acquired 1 | . . 1 . Parts Damaged . | . . . . Bothacking | -11 -10 -9 -9 ------------ Run | Yrd Mat Mat Sto Used RIF Installer . | . . . . Robots Hacked . | . . . . Non-combat . | . . . . Combat . | . . . . Robot Hacks Applied . | . . . . Relay Couplers Released . | . . . . Fabnet Peak Effective % . | . . . . Robots Rewired . | . . . . Allies Hacked . | . . . . Hacks Repelled . | . . . . Allies | -11 -10 -9 -9 -------- Run | Yrd Mat Mat Sto Total Allies . | . . . . Largest Group . | . . . . Highest-Rated Group . | . . . . Highest-Rated Ally . | . . . . Total Orders . | . . . . Ally Attacks . | . . . . Total Damage . | . . . . Kills . | . . . . Allies Corrupted . | . . . . Allies Melted . | . . . . Intel | -11 -10 -9 -9 ------- Run | Yrd Mat Mat Sto Robot Analysis Total 1 | . . 1 . Derelict Logs Recovered . | . . . . Drone Launches . | . . . . Drone Recoveries . | . . . . Exploration | -11 -10 -9 -9 ------------- Run | Yrd Mat Mat Sto Turns Passed 1943 | 125 169 687 962 Spaces Moved 978 | 75 105 391 407 Core 8 | 3 . . 5 Treads 6 | 6 . . . Legs 964 | 66 105 391 402 Wheels . | . . . . Hover . | . . . . Flight . | . . . . Fastest Speed 50 | 50 120 120 120 Average Speed 148 | 130 120 122 183 Slowest Speed 400 | 190 120 190 400 Overloaded Moves . | . . . . Propulsion Burnouts . | . . . . Robots Hopped . | . . . . Cave-ins Triggered . | . . . . Exploration Rate (%) 26 | 5 22 34 46 Regions Visited 3 Branch Regions 1 Pre-discovered Areas . | . . . . Known Exits Taken . | . . . . Unknown Exits Taken 3 | 1 1 1 . Scrap Searched . | . . . . Spaces Dug . | . . . . Terrain Destroyed 20 | . . 1 19 Melee . | . . . . Projectile . | . . . . AOE 20 | . . 1 19 Terrain Rammed . | . . . . Walls Destroyed . | . . . . Machines Disabled . | . . . . Actions | -11 -10 -9 -9 --------- Run | Yrd Mat Mat Sto Total 1309 | 90 138 532 549 Wait 170 | . 24 92 54 Move 975 | 74 104 390 407 Hop . | . . . . Pick Up 11 | 3 5 2 1 Fast Attach 20 | 7 . 2 11 Attach 6 | . . 1 5 Detach 1 | . . . 1 Swap 20 | 2 . 5 13 Drop 5 | . . 3 2 Fire 87 | 3 5 33 46 Melee 3 | . . . 3 Ram . | . . . . Kick 11 | 1 . 4 6 Crush . | . . . . Escape Stasis . | . . . . Rewire . | . . . . Trap . | . . . . Miscellaneous . | . . . . Route ------- -11/Scrapyard -10/Materials -9/Materials -9/Storage History --------- Turn | Location | Event 38 | -11/Scrapyard | Discovered new exit (range 13) 126 | -11/Scrapyard | Entered Materials 236 | -10/Materials | Discovered new exit (range 13) 295 | -10/Materials | Entered another Materials area 295 | -9/Materials | Evolved 2 slots: Utility x2 317 | -9/Materials | Build established: Mutant 924 | -9/Materials | Discovered new exit (range 17) 982 | -9/Materials | Entered Storage 1003 | -9/Storage | Lost 3 parts (1n2w) 1039 | -9/Storage | Repaired Aluminum Leg 1083 | -9/Storage | Core integrity fell below 50% 1116 | -9/Storage | Lost 3 parts (1p1n1w) 1639 | -9/Storage | Core integrity fell below 20% 1944 | -9/Storage | Destroyed by Y-45 Defender with Heavy Assault Rifle Last Messages --------------- 01794_ QG##SRLBZUHVDATIQW8AA0RWN22L G#NLA 01861_ G-34 Mercenary suffers critical hit (Destroy). 01861_ Destroyed Aluminum Leg. 01866_ G-34 Mercenary destroyed. 01870_ Acquired Sml. Laser. 01884_ Storage Shell breached. 01888_ System corrupted: FCS attempts to trigger Sml. Laser. 01888_ System corrupted: Sml. Laser misfires. 01891_ Acquired Unknown Storage. 01891_ Identified Sml. Battery. 01895_ Acquired 97 matter. 01900_ Extracted 158 energy. 01903_ Extracted 50 matter. 01911_ K-01 Serf collects debris. 01932_ System corrupted: Matter fused (-6). Map ----- +----------------------------------------------------+ | | | | | | | | | | | ??????????????????????????????#########?????? | | ??????????????????????????????# #?????? | | ??????????????????????????????#""" #?????? | | ??????????????????????????????#""" ####### | | ??????????????????????????????#""" + ^ | | ??????????????????????????##+## # | | ??????????????????????????# ###+##### | | ??????????????????????????+ | | ??????????????????????????# ############# | | ??????????????????????????# ## ?????# | | ???????????????????#+##+### ## ??????# | | ???????????????????+ ## """"???# | | ???????????????????# ## " ="???# | | ???????????????????# """ ## "! "???# | | ???????????????????# "R ## " "???# | | ???????????????????# """ %+ | "???# | | ???????????????????# """ ## """" #?# | | ???????????????????#a ## #?# | | ???????????????????# ######+####?# | | ??????????????????## """" #???? ???? | | ??????????????????# @ """""" #???? ????# | | ???????????????? + """"" #???? | | ??????????????"" # """"" #???? | | ????????????? ?## a +???? | | ?????????????? ????# #???? | | ???????????????????# #T###### #???? | | ???????????????????# ###????? #???? | | ???????????????????# #??????# #???? | | ???????????????????# ######??????# #???? | | ???????????????????# #???????????#+## #???? | | ???????????????????# ???????????????# #???? | | ???????????????????# ???????????????# #???? | | ??????????????????? ???????????????? ????? | | ??????????????????? Y???????????????? ????? | | ??????????????????? ???????????????? ????? | | ???????????????????# ???????????????????????? | | ???????????????????? ???????????????????????? | | ???????????????????? ???????????????????????? | | ????????????????????????????????????????????? | | ????????????????????????????????????????????? | | ????????????????????????????????????????????? | | ????????????????????????????????????????????? | | ????????????????????????????????????????????? | | ????????????????????????????????????????????? | | ????????????????????????????????????????????? | +----------------------------------------------------+ Best States ------------- Heat Dissipation 28 Energy Generation 10 Energy Capacity 450 Matter Stores 300 Matter Capacity 300 Sight Range 18 Terrain Scan Range 16 Terrain Scan Density 85 ECM Strength 1 Evasion (%) 55 Recoil Reduction 1 Item Schematics ----------------- Hacking Suite | -9/Materials | Scanalyzed Robot Schematics ------------------ None Fabricated ------------ Nothing Alien Tech Used ----------------- None Achievements -------------- None Challenges ------------ None Game ------ Seed GrenadeLightpackObliterator Manual? 0 Play Time 00:19:33 Cumulative 35.2 hours Start 2024.09.11 @ 00:21:25 End 2024.09.11 @ 00:39:47 Sessions 1 Manual Loads 0 Difficulty Rogue Special Mode None Game No. 41 Rogue 41 Adventurer 0 Explorer 0 Win Type - Total 0 Types 0/0/0/0/0/0/0/0/0 Lore% 18 Gallery% 36 Achievement% 26 Wizard Run 0 Options --------- Layout 2 ASCII 0 Keyboard 1 Movement Numpad Keybinds 0 Fullscreen 2 Font 24/Smallcaps Map View 50x44 Zoom Use 0% Tactical HUD 1 Map Filters NONE Filters LOW_CONTRAST(5,20,15) Steam 1 RUN: 63907bf6-46ee-4863-a7f2-e526ce5bd4d8